bitfinex-derivatives/quotes_ETHF0:USTF0_20250712
["timestamp","ask_amount","ask_price","bid_price","bid_amount"]
[1752361741687,0.68157,2933.4,2933.3,1.6015]
[1752361741981,1.53761048,2933.4,2933.3,1.6015]
[1752361742189,1.53761048,2933.4,2933.3,6.6015]
[1752361742384,0.85604048,2933.4,2933.3,7.5704]
[1752361742780,1.53761048,2933.4,2933.3,7.5704]
[1752361743083,0.6646,2933.0,2932.6,0.9689]
[1752361743385,0.6646,2933.0,2932.3,1.9193]
[1752361743386,5.76819048,2932.7,2932.3,1.9193]
[1752361743591,5.76819048,2932.7,2931.3,9.71662987]
[1752361743592,3.24827,2932.1,2932.0,0.6511]
[1752361743791,31.53278048,2932.1,2932.0,2.5704]
[1752361744389,5.63454048,2932.1,2932.0,2.5704]
[1752361744581,0.68183,2932.3,2932.2,0.6511]
[1752361744781,23.99282,2932.3,2932.2,2.5704]
[1752361745085,24.85186048,2932.3,2932.2,2.5704]
[1752361746288,24.17004048,2932.3,2932.2,2.5704]
[1752361746585,25.49576048,2932.3,2932.2,2.5704]
[1752361746790,29.01594048,2932.3,2932.2,2.5704]
[1752361747093,29.69776048,2932.3,2932.2,2.5704]
[1752361747292,29.01594048,2932.3,2932.2,2.5704]
[1752361747586,29.69776048,2932.3,2932.2,2.5704]
[1752361747983,29.01594048,2932.3,2932.2,2.5704]
[1752361748194,30.60636048,2932.3,2932.2,2.5704]
[1752361749885,1.32577,2932.1,2932.0,8.4933]
[1752361750092,27.42961048,2932.1,2932.0,8.4933]
[1752361750283,28.33928048,2932.1,2932.0,8.4933]
[1752361751085,3.2078,2932.3,2932.0,11.1179]
[1752361751289,3.2078,2932.3,2932.2,2.6246]
[1752361751490,4.53353,2932.3,2932.2,1.6424]
[1752361751693,6.43633,2932.3,2932.2,2.6246]
[1752361752189,30.707,2932.3,2932.2,1.6497]
[1752361752390,30.707,2932.3,2932.2,0.6675]
[1752361752983,30.707,2932.3,2932.2,1.6497]
[1752361753189,30.707,2932.3,2932.2,2.6246]
[1752361755087,29.79133,2932.3,2932.2,2.6246]
[1752361755293,29.79133,2932.3,2932.2,11.1179]
[1752361755893,30.701,2932.3,2932.2,11.1179]
[1752361756197,29.79133,2932.3,2932.2,11.1179]
[1752361759986,28.88273,2932.3,2932.2,11.1179]
[1752361760495,27.87753,2932.3,2932.2,11.1179]
[1752361761097,28.78613,2932.3,2932.2,11.1179]
[1752361761298,27.87753,2932.3,2932.2,11.1179]
[1752361761495,27.87439205,2932.3,2932.2,11.1179]
[1752361766699,0.67869205,2932.3,2932.2,11.1179]
[1752361766898,24.01169205,2932.3,2932.2,11.1179]
[1752361767098,3.88955,2932.6,2932.5,2.6246]
[1752361767299,27.22255,2932.6,2932.5,2.6246]
[1752361768504,3.88955,2932.6,2932.5,2.6246]
[1752361768700,1.70414,2933.1,2932.5,2.6246]
[1752361768701,4.8459,2933.2,2933.1,0.6675]
[1752361768900,27.88331,2933.2,2933.1,2.6246]
[1752361769102,28.87751,2933.2,2933.1,2.6246]
[1752361770001,25.66971,2933.2,2933.1,2.6246]
[1752361770196,25.66971,2933.2,2933.1,11.1179]
[1752361770598,25.66771,2933.2,2933.1,11.1179]
[1752361771506,24.67351,2933.2,2933.1,11.1179]
[1752361772306,26.57631,2933.2,2933.1,11.1179]
[1752361773208,27.48598,2933.2,2933.1,11.1179]
[1752361773806,30.69378,2933.2,2933.1,11.1179]
[1752361774108,29.78411,2933.2,2933.1,11.1179]
[1752361783206,26.57631,2933.2,2933.1,11.1179]
[1752361784306,4.06384048,2933.3,2933.1,11.1179]
[1752361784512,23.98961,2933.2,2933.1,10.1102]
[1752361784813,23.9876,2933.3,2933.2,1.5965]
[1752361785004,23.9876,2933.3,2933.2,2.27811]
[1752361785201,23.9876,2933.3,2933.2,3.18851]
[1752361785410,23.9876,2933.3,2933.2,11.68181]
[1752361785910,23.9876,2933.3,2933.2,11.0002]
[1752361786211,23.9876,2933.3,2933.2,11.68181]
[1752361786410,23.9876,2933.3,2933.2,11.0002]
[1752361787011,0.6816,2933.3,2933.2,11.0002]
[1752361787313,1.53764048,2933.3,2933.2,11.0002]
[1752361788110,2.15454048,2933.3,2933.2,11.0002]
[1752361788309,3.12794048,2933.3,2933.2,11.0002]
[1752361792015,3.12794048,2933.3,2933.2,11.68181]
[1752361792215,2.15454048,2933.3,2933.2,11.68181]
[1752361792715,3.12794048,2933.3,2933.2,11.0002]
[1752361793109,4.04214048,2933.3,2933.2,11.0002]
[1752361795812,4.04214048,2933.3,2933.2,11.68181]
[1752361796211,3.12794048,2933.3,2933.2,11.68181]
[1752361796607,3.12794048,2933.3,2933.2,11.0002]
[1752361796812,3.12794048,2933.3,2933.2,11.68181]
[1752361797419,3.12794048,2933.3,2933.2,11.0002]
[1752361797420,2.2719,2933.3,2933.2,11.0002]
[1752361798120,2.2719,2933.3,2933.2,11.68181]
[1752361798324,2.2719,2933.3,2933.2,11.0002]
[1752361798520,3.1861,2933.3,2933.2,11.0002]
[1752361802019,2.2719,2933.3,2933.2,11.68181]
[1752361802217,2.2719,2933.3,2933.2,11.0002]
[1752361802621,1.2985,2933.3,2933.2,11.68181]
[1752361802820,0.6816,2933.3,2933.2,11.68181]
[1752361810020,4.2086,2933.6,2933.3,0.6435]
[1752361810226,3.88932,2933.6,2933.5,0.68154]
[1752361810429,3.88932,2933.6,2933.5,3.18074]
[1752361810822,3.2078,2933.6,2933.5,3.18074]
[1752361811826,3.88932,2933.6,2933.5,3.18074]
[1752361812123,0.6815,2933.7,2933.6,3.18072]
[1752361812327,0.68148,2933.8,2933.7,0.68146]
[1752361812520,1.72138905,2933.8,2933.7,2.24486]
[1752361812722,1.72138905,2933.8,2933.7,3.18066]
[1752361813027,1.03990905,2933.8,2933.7,3.18066]
[1752361813529,0.68146,2933.9,2933.8,1.32497]
[1752361813724,0.68146,2933.9,2933.8,3.18067]
[1752361813928,0.68145,2934.0,2933.9,3.18065]
[1752361814129,1.72125437,2934.0,2933.9,3.18065]
[1752361814832,4.32325437,2934.0,2933.9,2.4992]
[1752361815427,4.32325437,2934.0,2933.9,10.9925]
[1752361816229,3.28345,2934.0,2933.9,10.9925]
[1752361822039,4.19312,2934.0,2933.9,8.4933]
[1752361824345,10.17810285,2934.0,2933.9,8.4933]
[1752361824545,11.08777285,2934.0,2933.9,8.4933]
[1752361826043,10.23173237,2934.0,2933.9,8.4933]
[1752361826548,5.23173237,2934.0,2933.9,8.4933]
[1752361830651,6.08777285,2934.0,2933.9,8.4933]
[1752361832951,9.29557285,2934.0,2933.9,8.4933]
[1752361834952,8.43953237,2934.0,2933.9,8.4933]
[1752361835643,9.29557285,2934.0,2933.9,8.4933]
[1752361835847,8.43953237,2934.0,2933.9,8.4933]
[1752361840454,8.43953237,2934.0,2933.9,9.4439]
[1752361845756,8.43953237,2934.0,2933.9,10.4212]
[1752361846256,8.43953237,2934.0,2933.9,11.0506]
[1752361846956,5.23173237,2934.0,2933.9,11.0506]
[1752361847255,8.43953237,2934.0,2933.9,11.0506]
[1752361849356,9.29557285,2934.0,2933.9,8.4933]
[1752361850555,8.43953237,2934.0,2933.9,8.4933]
[1752361850756,10.51199823,2934.0,2933.9,8.4933]
[1752361854256,9.29557285,2934.0,2933.9,8.4933]
[1752361856356,8.43953237,2934.0,2933.9,8.4933]
[1752361856562,8.43953237,2934.0,2933.9,11.0506]
[1752361861076,9.29557285,2934.0,2933.9,11.0506]
[1752361861762,31.63253237,2934.0,2933.9,11.0506]
[1752361862275,29.68843237,2934.0,2933.9,11.0506]
[1752361862473,6.15493883,2934.0,2933.9,11.0506]
[1752361862677,1.22707646,2934.1,2933.9,14.1227]
[1752361862969,1.90847646,2934.1,2934.0,1.0294]
[1752361863168,2.76451694,2934.1,2934.0,1.0294]
[1752361863569,1.53744048,2934.1,2934.0,1.0294]
[1752361864773,2.46664048,2934.1,2934.0,1.0294]
[1752361865276,2.46664048,2934.1,2934.0,9.5227]
[1752361871479,3.07834048,2934.1,2934.0,9.5227]
[1752361872573,3.07834048,2934.1,2934.0,9.4922]
[1752361874682,4.1035157,2934.1,2934.0,9.4922]
[1752361877083,5.0870157,2934.1,2934.0,9.4439]
[1752361880078,5.0870157,2934.1,2934.0,9.4916]
[1752361886489,1.02517522,2934.1,2934.0,10.20282]
[1752361887287,0.68138,2934.2,2934.0,10.20282]
[1752361887487,0.68138,2934.2,2934.1,1.6499]
[1752361887786,1.70644395,2934.2,2934.1,0.9983]
[1752361888188,1.70614954,2934.2,2934.1,0.9983]
[1752361889187,0.68138,2934.2,2934.1,0.9983]
[1752361889786,1.65808,2934.2,2934.1,0.9983]
[1752361890289,1.65808,2934.2,2934.1,9.4916]
[1752361891490,2.51412048,2934.2,2934.1,9.4916]
[1752361894186,2.51412048,2934.2,2934.1,10.173]
[1752361894388,2.51412048,2934.2,2934.1,9.4916]
[1752361895191,3.13172048,2934.2,2934.1,9.4916]
[1752361895491,3.13172048,2934.2,2934.1,9.4618]
[1752361897091,3.13172048,2934.2,2934.1,12.6696]
[1752361898396,3.13172048,2934.2,2934.1,13.351]
[1752361898583,1.65808,2934.2,2934.1,13.3801]
[1752361898789,0.9767,2934.2,2934.1,13.3801]
[1752361899083,0.68138,2934.2,2934.1,13.3801]
[1752361899999,0.68135,2934.4,2934.3,0.68132]
[1752361900293,0.68135,2934.4,2934.3,1.62712]
[1752361900498,1.59075,2934.4,2934.3,1.62712]
[1752361902500,1.59075,2934.4,2934.3,0.9458]
[1752361902689,2.19375,2934.4,2934.3,0.9458]
[1752361902892,3.15405,2934.4,2934.3,0.9458]
[1752361905297,3.15405,2934.4,2934.3,9.4391]
[1752361915202,4.17769068,2934.4,2934.3,9.4391]
[1752361920600,5.08736068,2934.4,2934.3,8.4933]
[1752361920900,8.29516068,2934.4,2934.3,8.4933]
[1752361921101,8.29516068,2934.4,2934.3,7.4918]
[1752361921805,9.52223714,2934.4,2934.3,7.4918]
[1752361923802,1.28445,2933.9,2933.8,0.03613]
[1752361924001,1.28454,2933.5,2933.4,4.7841]
[1752361924213,4.01028048,2933.5,2933.4,1.5763]
[1752361924402,4.01028048,2933.5,2933.4,0.6368]
[1752361925203,3.15429,2933.3,2933.2,0.6368]
[1752361925505,4.01033048,2933.3,2933.2,1.5763]
[1752361925902,4.01033048,2933.3,2933.2,2.5221]
[1752361927204,4.01033048,2933.3,2933.2,11.0154]
[1752361931703,4.01033048,2933.3,2933.2,10.3786]
[1752361932002,4.01033048,2933.3,2933.2,8.4933]
[1752361932306,4.01033048,2933.3,2933.2,9.0933]
[1752361933709,4.01033048,2933.3,2933.2,10.064]
[1752361933903,4.01033048,2933.3,2933.2,10.9964]
[1752361934208,3.17109,2933.3,2933.2,10.9964]
[1752361935100,3.17109,2933.3,2933.2,9.0933]
[1752361937900,3.17109,2933.3,2933.2,10.9964]
[1752361941908,2.55129,2933.3,2933.2,10.9964]
[1752361942309,3.17109,2933.3,2933.2,10.9964]
[1752361946816,3.17109,2933.3,2933.2,8.4933]
[1752361947415,6.37889,2933.3,2933.2,8.4933]
[1752361948108,7.39810323,2933.3,2933.2,8.4933]
[1752361958035,7.39810323,2933.3,2933.2,9.1344]
[1752361958235,30.57110323,2933.3,2933.2,9.1344]
[1752361959336,30.57110323,2933.3,2933.2,8.4933]
[1752361967841,30.57110323,2933.3,2933.2,9.1344]
[1752361971840,27.36330323,2933.3,2933.2,9.1344]
[1752361972046,30.57110323,2933.3,2933.2,9.1344]
[1752361972640,27.36330323,2933.3,2933.2,9.1344]
[1752361972847,30.57321712,2933.3,2933.2,9.1344]
[1752361974549,30.57321712,2933.3,2933.2,8.4933]
[1752361976448,30.57321712,2933.3,2933.2,9.1344]
[1752361984864,7.44601712,2933.3,2933.2,11.0186]
[1752361985062,31.4740576,2933.3,2933.2,11.0186]
[1752361986968,31.4740576,2933.3,2933.2,9.1344]
[1752361987665,31.4740576,2933.3,2933.2,8.4933]
[1752361992772,31.4740576,2933.3,2933.2,9.1162]
[1752361994066,31.4740576,2933.3,2933.2,10.0712]
[1752361994372,31.4740576,2933.3,2933.2,10.9783]
[1752361994869,31.4740576,2933.3,2933.2,9.1162]
[1752361997778,8.3020576,2933.3,2933.2,10.9783]
[1752361997970,28.9397576,2933.3,2933.2,10.9783]
[1752361998670,25.7319576,2933.3,2933.2,10.9783]
[1752362001674,27.6666576,2933.3,2933.2,10.9783]
[1752362001874,28.2872576,2933.3,2933.2,10.9783]
[1752362011874,5.1142576,2933.3,2933.2,10.9783]
[1752362012073,28.2842576,2933.3,2933.2,10.9783]
[1752362015581,28.2842576,2933.3,2933.2,9.1162]
[1752362015884,31.4920576,2933.3,2933.2,9.1162]
[1752362016072,31.4920576,2933.3,2933.2,8.4933]
[1752362020584,28.2842576,2933.3,2933.2,8.4933]
[1752362020783,31.4920576,2933.3,2933.2,8.4933]
[1752362024483,31.4920576,2933.3,2933.2,9.1469]
[1752362026689,31.4910576,2933.3,2933.2,11.0045]
[1752362031397,28.2832576,2933.3,2933.2,11.0045]
[1752362036499,28.28156409,2933.3,2933.2,11.0045]
[1752362040998,5.11256409,2933.3,2933.2,11.0045]
[1752362041200,28.28056409,2933.3,2933.2,11.0045]
[1752362041999,28.28056409,2933.3,2933.2,9.1469]
[1752362042795,28.28056409,2933.3,2933.2,8.4933]
[1752362043001,28.28056409,2933.3,2933.2,1.19439785]
[1752362047508,28.28056409,2933.3,2933.2,0.50260785]
[1752362047712,3.12342,2932.7,2932.6,2.4954]
[1752362047907,27.14746048,2932.7,2932.6,2.4954]
[1752362048102,27.14746048,2932.7,2932.6,1.5584]
[1752362048308,27.14746048,2932.7,2932.6,0.6133]
[1752362048309,28.16772993,2932.7,2932.6,0.6133]
[1752362050216,30.51948945,2932.7,2932.6,0.6133]
[1752362050916,30.51948945,2932.7,2932.6,9.1066]
[1752362051712,30.51948945,2932.7,2932.6,10.0436]
[1752362051917,30.51948945,2932.7,2932.6,9.1066]
[1752362053416,27.31168945,2932.7,2932.6,9.1066]
[1752362054813,30.51948945,2932.7,2932.6,9.1066]
[1752362055418,30.51948945,2932.7,2932.6,8.4933]
[1752362057921,27.31168945,2932.7,2932.6,8.4933]
[1752362058216,0.68184,2932.2,2932.1,1.8821]
[1752362058416,27.14858048,2932.2,2932.1,2.4954]
[1752362059117,0.68184,2932.2,2932.1,2.4954]
[1752362059324,23.85084,2932.2,2932.1,2.4954]
[1752362060422,0.6818,2932.4,2932.3,0.6133]
[1752362060620,0.6818,2932.4,2932.3,2.4954]
[1752362060823,0.68177,2932.5,2932.4,2.4954]
[1752362061828,2.50877,2932.5,2932.4,2.4954]
[1752362062326,0.68177,2932.5,2932.4,2.4954]
[1752362063325,2.50877,2932.5,2932.4,2.4954]
[1752362065530,3.12347,2932.5,2932.4,2.4954]
[1752362067030,26.29247,2932.5,2932.4,2.4954]
[1752362069333,23.85077,2932.5,2932.4,2.4954]
[1752362069630,23.85077,2932.5,2932.4,3.17719]
[1752362069631,0.68177,2932.5,2932.4,3.17719]
[1752362070331,0.68177,2932.5,2932.4,6.38499]
[1752362078333,0.68177,2932.5,2932.4,5.7032]
[1752362078635,2.60577,2932.5,2932.4,5.7032]
[1752362078835,2.60577,2932.5,2932.4,2.4954]
[1752362079036,2.60577,2932.5,2932.4,5.7032]
[1752362079639,2.60577,2932.5,2932.4,6.38499]
[1752362080540,2.60577,2932.5,2932.4,5.7032]
[1752362080840,2.60577,2932.5,2932.4,6.38499]
[1752362081840,1.62877,2932.5,2932.4,6.38499]
[1752362082043,0.68177,2932.5,2932.4,6.38499]
[1752362082240,0.68177,2932.5,2932.4,3.17719]
[1752362082440,1.65877,2932.5,2932.4,3.17719]
[1752362082641,2.60577,2932.5,2932.4,6.38499]
[1752362086655,1.924,2933.0,2932.9,0.6441]
[1752362086857,2.60565,2933.0,2932.9,2.4858]
[1752362087355,2.60565,2933.0,2932.9,3.16748]
[1752362091455,1.924,2933.0,2932.9,3.16748]
[1752362091652,3.24001,2933.2,2933.1,2.4858]
[1752362092954,2.60561,2933.2,2933.1,3.16743]
[1752362093861,3.2078,2933.5,2933.4,3.16736]
[1752362093862,0.6344,2933.5,2933.4,3.16736]
[1752362094059,1.70268872,2933.7,2933.6,2.23122]
[1752362094261,1.22296288,2934.1,2933.5,0.85604048]
[1752362094461,0.977,2933.9,2933.8,1.61757]
[1752362094758,3.23985,2933.9,2933.8,0.9361]
[1752362094962,2.5584,2933.9,2933.8,1.61757]
[1752362095764,3.23985,2933.9,2933.8,1.61757]
[1752362096758,1.924,2934.1,2933.8,1.79214048]
[1752362096961,2.6054,2934.1,2934.0,4.82531]
[1752362098163,1.924,2934.1,2934.0,4.82531]
[1752362098364,0.977,2934.1,2934.0,5.68135048]
[1752362098765,0.977,2934.1,2934.0,4.82531]
[1752362101560,0.977,2934.1,2934.0,5.68135048]
[1752362101756,0.947,2934.6,2934.1,0.9361]
[1752362101967,0.977,2934.5,2934.4,1.53737048]
[1752362102260,0.68131,2934.5,2934.4,2.47347048]
[1752362102565,1.65831,2934.5,2934.4,0.68133]
[1752362102864,1.65831,2934.5,2934.4,1.61743]
[1752362103065,0.977,2934.5,2934.4,1.61743]
[1752362103260,2.60527,2934.7,2934.6,1.61738]
[1752362103461,3.23967,2934.7,2934.6,4.82518]
[1752362103862,0.977,2934.7,2934.6,4.82518]
[1752362104064,0.977,2934.7,2934.6,5.68122048]
[1752362104565,1.65826,2934.7,2934.6,5.68122048]
[1752362105467,3.23966,2934.7,2934.6,4.1439]
[1752362105665,3.23966,2934.7,2934.6,4.82518]
[1752362105965,3.23966,2934.7,2934.6,4.1439]
[1752362106869,3.23966,2934.7,2934.6,4.82518]
[1752362107468,3.23966,2934.7,2934.6,4.1439]
[1752362107968,3.23966,2934.7,2934.6,4.82518]
[1752362108672,3.23966,2934.7,2934.6,4.1439]
[1752362111770,3.23966,2934.7,2934.6,3.2078]
[1752362113171,3.23966,2934.7,2934.6,4.1556]
[1752362114972,1.65826,2934.7,2934.6,4.83688]
[1752362116170,2.62346,2934.7,2934.6,4.83688]
[1752362116965,2.62346,2934.7,2934.6,4.1556]
[1752362117162,3.22766,2934.7,2934.6,4.1556]
[1752362117771,3.22766,2934.7,2934.6,4.83688]
[1752362117964,1.65826,2934.7,2934.6,4.83688]
[1752362118169,1.65826,2934.7,2934.6,5.69292048]
[1752362118674,2.62346,2934.7,2934.6,5.69292048]
[1752362119373,0.977,2934.7,2934.6,5.69292048]
[1752362119974,1.9075,2934.9,2934.8,1.62904]
[1752362120274,1.9075,2934.9,2934.8,2.48508048]
[1752362123477,0.9423,2934.9,2934.8,2.48508048]
[1752362123976,0.9423,2935.3,2935.2,1.62894]
[1752362124176,0.9423,2935.3,2935.2,5.69278048]
[1752362125675,2.5117,2935.6,2935.5,1.62887]
[1752362125879,3.19275,2935.6,2935.5,4.83667]
[1752362126071,2.5117,2935.6,2935.5,4.83667]
[1752362126574,1.5465,2935.6,2935.5,5.69271048]
[1752362126778,3.19275,2935.6,2935.5,5.69271048]
[1752362127279,2.5117,2935.6,2935.5,5.69271048]
[1752362127679,3.19275,2935.6,2935.5,4.83667]
[1752362128980,3.19275,2935.6,2935.5,3.2078]
[1752362129273,3.19275,2935.6,2935.2,3.2078]
[1752362129274,0.68114,2935.3,2935.2,3.2078]
[1752362129472,3.19284,2935.3,2935.2,3.2078]
[1752362130076,2.5117,2935.3,2935.2,4.83673]
[1752362130369,1.22296288,2936.5,2935.3,0.9478]
[1752362130569,1.22296288,2936.5,2935.1,0.85604048]
[1752362130570,0.6042,2936.1,2936.0,4.83655]
[1752362130778,2.5117,2936.1,2936.0,4.83655]
[1752362133186,0.9423,2936.1,2936.0,4.83655]
[1752362135083,2.5117,2936.1,2936.0,4.83655]
[1752362139691,2.5117,2936.1,2936.0,3.88875]
[1752362140090,2.5117,2936.1,2936.0,4.82045]
[1752362140492,3.19264,2936.1,2936.0,4.82045]
[1752362140789,0.68104,2935.8,2935.7,3.2078]
[1752362140989,0.68104,2935.8,2935.4,0.9317]
[1752362140990,2.5952,2935.5,2935.4,3.2078]
[1752362141190,3.27627,2935.5,2935.4,3.8889]
[1752362141389,3.27627,2935.5,2935.4,3.2078]
[1752362143295,3.27627,2935.5,2935.4,3.8889]
[1752362143784,3.27627,2935.5,2935.4,3.2078]
[1752362144195,3.27627,2935.5,2935.4,3.8889]
[1752362145493,3.27627,2935.5,2935.4,3.2078]
[1752362145893,0.6811,2935.4,2935.3,0.68111]
[1752362146096,3.2763,2935.4,2935.3,0.68111]
[1752362149593,2.5952,2935.4,2935.3,0.68111]
[1752362149897,2.5952,2935.4,2935.3,2.46885048]
[1752362151598,3.2763,2935.4,2935.3,2.46885048]
[1752362152998,3.2763,2935.4,2935.3,0.68111]
[1752362154495,0.68114,2935.3,2935.2,0.68113]
[1752362154800,3.27634,2935.3,2935.2,0.68113]
[1752362154996,3.27634,2935.2,2935.1,4.74499048]
[1752362155202,3.27634,2935.2,2935.1,3.88897]
[1752362155702,3.27634,2935.2,2935.1,3.2078]
[1752362156405,3.27634,2935.2,2935.1,3.88897]
[1752362157405,3.27634,2935.2,2935.1,3.2078]
[1752362158104,3.27634,2935.2,2935.1,3.88897]
[1752362159506,3.27634,2935.2,2935.1,0.68117]
[1752362159708,3.27634,2935.2,2935.1,3.2078]
[1752362163109,3.27634,2935.2,2935.1,3.88897]
[1752362164110,3.27634,2935.2,2935.1,3.2078]
[1752362164305,3.27634,2935.2,2935.1,3.88897]
[1752362165211,3.27634,2935.2,2935.1,3.2078]
[1752362167014,3.27634,2935.2,2935.1,3.88897]
[1752362167811,3.27634,2935.2,2935.1,0.68117]
[1752362168210,3.27634,2935.2,2935.1,3.88897]
[1752362168511,3.27634,2935.2,2935.1,0.68117]
[1752362169112,3.27634,2935.2,2935.1,3.88897]
[1752362174918,3.27634,2935.2,2935.1,0.68117]
[1752362175116,3.27634,2935.2,2935.1,3.88897]
[1752362175711,1.9536,2935.2,2935.1,4.84057]
[1752362175916,0.9958,2935.2,2935.1,4.84057]
[1752362176817,1.67694,2935.2,2935.1,4.84057]
[1752362177017,2.63684,2935.2,2935.1,4.84057]
[1752362178620,2.63684,2935.2,2935.1,1.63277]
[1752362178821,2.63684,2935.2,2935.1,4.84057]
[1752362179417,1.9557,2935.2,2935.1,4.84057]
[1752362180221,0.9958,2935.2,2935.1,4.84057]
[1752362180523,0.68105,2935.7,2935.4,0.9516]
[1752362180819,3.27865,2935.7,2935.6,2.48867048]
[1752362181517,4.29367225,2935.7,2935.6,2.48867048]
[1752362181720,3.27865,2935.7,2935.6,2.48867048]
[1752362182520,4.29361576,2935.7,2935.6,2.48867048]
[1752362182820,4.29361576,2935.7,2935.6,2.48869048]
[1752362183221,3.27865,2935.7,2935.6,2.48869048]
[1752362183521,4.2936391,2935.7,2935.6,2.48869048]
[1752362185225,3.27865,2935.7,2935.6,2.48869048]
[1752362189026,3.27867,2935.5,2935.4,3.2078]
[1752362189529,3.27867,2935.5,2935.4,4.1594]
[1752362189830,3.27867,2935.5,2935.4,4.84047]
[1752362190330,3.27867,2935.5,2935.4,3.88887]
[1752362191027,0.68117,2935.2,2935.1,3.2078]
[1752362191227,2.5976,2935.2,2935.1,3.88894]
[1752362191427,2.5976,2935.2,2935.1,4.84054]
[1752362193631,2.5976,2935.2,2935.1,1.63274]
[1752362193930,2.5976,2935.2,2935.1,4.84054]
[1752362195332,2.5976,2935.2,2935.1,3.88894]
[1752362195632,3.27874,2935.2,2935.1,3.88894]
[1752362195832,2.5976,2935.2,2935.1,3.88894]
[1752362197533,2.5976,2935.2,2935.1,3.89264]
[1752362198728,2.5976,2935.2,2935.1,4.86174]
[1752362201138,1.9496,2935.2,2935.1,4.86174]
[1752362201340,0.6136,2935.6,2935.5,0.0037]
[1752362201534,0.6136,2935.9,2935.8,0.68471]
[1752362201733,1.62778859,2935.9,2935.8,2.50985048]
[1752362201928,3.48558859,2935.9,2935.8,2.50985048]
[1752362202135,4.16656859,2935.9,2935.8,0.85604048]
[1752362202336,4.16656859,2935.9,2935.8,1.53705048]
[1752362203039,4.16656859,2935.9,2935.8,0.85604048]
[1752362203229,4.16656859,2935.9,2935.8,1.53705048]
[1752362203434,4.16656859,2935.9,2935.8,0.85604048]
[1752362204641,3.15241,2935.8,2935.7,0.68101]
[1752362204939,4.16659859,2935.8,2935.7,0.68101]
[1752362205141,2.53885,2935.7,2935.6,0.68103]
[1752362205442,3.15245,2935.7,2935.6,0.68103]
[1752362207145,3.15245,2935.7,2935.6,1.53707048]
[1752362207542,3.15245,2935.7,2935.6,1.54077048]
[1752362207945,3.15245,2935.7,2935.6,2.50987048]
[1752362208645,2.4714,2935.7,2935.6,2.50987048]
[1752362209345,3.15243,2935.7,2935.6,2.50987048]
[1752362209545,2.4714,2935.7,2935.6,2.50987048]
[1752362209744,3.15243,2935.7,2935.6,2.50987048]
[1752362211849,3.15243,2935.7,2935.6,1.54077048]
[1752362212252,3.15243,2935.7,2935.6,1.53707048]
[1752362216455,2.4714,2935.7,2935.6,2.50987048]
[1752362216954,3.15243,2935.7,2935.6,2.50987048]
[1752362217355,2.4714,2935.7,2935.6,2.50987048]
[1752362220365,3.15232,2936.3,2936.2,0.0037]
[1752362220565,4.16612101,2936.3,2936.2,0.85604048]
[1752362221961,3.55252101,2936.3,2936.0,0.85604048]
[1752362222169,3.15234,2936.1,2936.0,0.85604048]
[1752362222359,3.15234,2936.1,2936.0,0.85974048]
[1752362222967,3.15234,2936.1,2936.0,1.54070048]
[1752362223168,2.4714,2936.1,2936.0,1.54070048]
[1752362223367,2.4714,2936.1,2936.0,2.50980048]
[1752362224273,0.9098,2936.1,2936.0,2.50980048]
[1752362224471,0.948,2936.4,2936.0,2.50980048]
[1752362224472,2.4714,2936.4,2936.3,1.64999]
[1752362224767,3.48471718,2936.4,2936.3,5.71383048]
[1752362225268,2.4714,2936.4,2936.3,5.71383048]
[1752362226471,0.9098,2936.4,2936.3,5.71383048]
[1752362227470,1.8364,2936.4,2936.3,5.71383048]
[1752362227971,2.4672,2936.4,2936.3,5.71383048]
[1752362228172,0.9098,2936.4,2936.3,5.71383048]
[1752362228967,1.8872,2936.8,2936.7,1.6337]
[1752362229172,2.518,2936.8,2936.7,5.69754048]
[1752362230073,0.9606,2936.8,2936.7,5.69754048]
[1752362230275,2.518,2936.8,2936.7,5.69754048]
[1752362232076,3.19877,2936.8,2936.7,5.69754048]
[1752362232278,2.518,2936.8,2936.7,5.69754048]
[1752362232472,0.9606,2936.8,2936.7,5.69754048]
[1752362233176,1.8872,2937.2,2937.1,0.6807]
[1752362233379,1.8872,2937.2,2937.1,5.69744048]
[1752362233778,0.6308,2937.5,2937.4,0.68063]
[1752362233980,0.6308,2937.5,2937.4,2.48957048]
[1752362234374,2.518,2937.5,2937.4,2.48957048]
[1752362238585,2.518,2937.5,2937.4,5.69737048]
[1752362239980,3.19861,2937.5,2937.4,5.69737048]
[1752362247986,3.19861,2937.5,2937.4,4.74447048]
[1752362249689,2.518,2937.5,2937.4,4.74447048]
[1752362250086,1.8872,2937.5,2937.4,5.69737048]
[1752362250292,0.6308,2938.0,2937.9,1.29231]
[1752362250492,0.6308,2938.0,2937.9,5.35615048]
[1752362250788,1.5574,2938.0,2937.9,5.35615048]
[1752362250987,1.5574,2938.0,2937.9,6.30905048]
[1752362251192,1.5574,2938.0,2937.9,7.22395048]
[1752362252289,2.518,2938.0,2937.9,7.22395048]
[1752362253493,3.1985,2938.0,2937.9,5.35615048]
[1752362253692,3.1985,2938.0,2937.9,3.2078]
[1752362253897,1.3113,2938.0,2937.9,1.29232]
[1752362254394,3.1985,2938.0,2937.9,1.29232]
[1752362255497,3.1985,2938.0,2937.9,0.68052]
[1752362256401,2.518,2938.0,2937.9,2.14836048]
[1752362258401,2.518,2938.0,2937.9,7.22926048]
[1752362259496,2.518,2938.0,2937.9,2.14836048]
[1752362260315,2.518,2938.0,2937.9,7.22926048]
[1752362263398,0.6628,2938.7,2938.6,0.6568]
[1752362263596,0.6628,2938.7,2938.6,1.53640048]
[1752362263597,3.59575847,2938.7,2938.6,1.53640048]
[1752362264000,2.5868,2938.7,2938.6,1.53640048]
[1752362264802,2.5868,2938.7,2938.6,2.19320048]
[1752362265311,0.6628,2939.5,2939.4,1.33697]
[1752362265606,1.6674958,2939.5,2939.4,1.53621048]